fUSD/lending_fUSD_20250519
["ID","MTS","AMOUNT","RATE_DAILY","PERIOD"]
[361622324,1747645491707,-400.0,0.00013698,2]
[361622325,1747645491716,-20.0,0.00013808,2]
[361622326,1747645491727,-400.0,0.00013808,2]
[361622327,1747645491739,-420.0,0.00013808,2]
[361622328,1747645491751,-952.87,0.00013808,2]
[361622329,1747645491768,-294.12802214,0.00013808,2]
[361622330,1747645491781,-420.0,0.00013808,2]
[361622331,1747645491792,-10837.62,0.00013808,2]
[361622332,1747645491810,-409.40726435,0.00013808,2]
[361622333,1747645491821,-2594.58,0.00013808,2]
[361622334,1747645491834,-697.83,0.00013808,2]
[361622335,1747645491845,-420.0,0.00013808,2]
[361622336,1747645491858,-2418.89,0.00013808,2]
[361622337,1747645491870,-202.34790549,0.00013808,2]
[361622338,1747645491931,-459.59,0.00013808,2]
[361622339,1747645491982,-1050.22,0.00013808,2]
[361622340,1747645491993,-420.0,0.00013808,2]
[361622341,1747645492004,-2409.69,0.00013808,2]
[361622342,1747645492021,-3661.73,0.00013808,2]
[361622343,1747645492036,-420.0,0.00013808,2]
[361622344,1747645492047,-420.0,0.00013808,2]
[361622345,1747645492106,-420.0,0.00013808,2]
[361622346,1747645492117,-918.79,0.00013808,2]
[361622347,1747645492128,-17791.57,0.00013808,2]
[361622348,1747645492142,-471.95,0.00013808,2]
[361622349,1747645492153,-400.0,0.00013808,2]
[361622350,1747645492189,-400.0,0.00013808,2]
[361622351,1747645492200,-760.25,0.00013808,2]
[361622352,1747645492258,-1138.46,0.00013808,2]
[361622353,1747645492277,-342.25791582,0.00013808,2]
[361622354,1747645492298,-400.0,0.00013808,2]
[361622355,1747645492315,-420.0,0.00013808,2]
[361622356,1747645492326,-536.49,0.00013808,2]
[361622357,1747645492338,-1782.38,0.00013808,2]
[361622358,1747645492353,-400.0,0.00013808,2]
[361622359,1747645492364,-213.74588707,0.00013808,2]
[361622360,1747645492423,-7885.05,0.00013808,2]
[361622361,1747645492471,-400.0,0.00013808,2]
[361622362,1747645492482,-575.68,0.00013808,2]
[361622363,1747645492499,-532.98,0.00013808,2]
[361622364,1747645492510,-1350.68,0.00013808,2]
[361622365,1747645492521,-400.0,0.00013808,2]
[361622366,1747645492536,-596.22,0.00013808,2]
[361622367,1747645492558,-420.0,0.00013698,2]
[361622368,1747645492573,-420.0,0.00013698,2]
[361622369,1747645492584,-160.0,0.00013698,2]
[361622370,1747645492594,-240.0,0.00013808,2]
[361622371,1747645492604,-400.0,0.00013808,2]
[361622372,1747645492615,-400.0,0.00013808,2]
[361622373,1747645492883,-555.0,0.00013808,2]
[361622374,1747645492933,-400.0,0.00013808,2]
[361622375,1747645492963,-420.0,0.00013808,2]
[361622376,1747645492978,-420.0,0.00013808,2]
[361622377,1747645492989,-1059.06,0.00013808,2]
[361622378,1747645493000,-1018.98,0.00013808,2]
[361622379,1747645493023,-420.0,0.00013808,2]
[361622380,1747645493039,-420.0,0.00013808,2]
[361622381,1747645493050,-420.0,0.00013808,2]
[361622382,1747645493060,-420.0,0.00013808,2]
[361622383,1747645493076,-420.0,0.00013808,2]
[361622384,1747645493086,-723.92,0.00013808,2]
[361622385,1747645493097,-400.0,0.00013808,2]
[361622386,1747645493109,-9535.52,0.00013808,2]
[361622387,1747645493121,-420.0,0.00013808,2]
[361622388,1747645493135,-1221.77,0.00013808,2]
[361622389,1747645493156,-420.0,0.00013808,2]
[361622390,1747645493167,-534.86,0.00013808,2]
[361622391,1747645493178,-400.0,0.00013808,2]
[361622392,1747645493195,-400.0,0.00013698,2]
[361622393,1747645493211,-420.0,0.00013808,2]
[361622394,1747645493231,-420.0,0.00013808,2]
[361622395,1747645493242,-494.52,0.00013808,2]
[361622396,1747645493276,-420.0,0.00013808,2]
[361622397,1747645493287,-528.43,0.00013808,2]
[361622398,1747645493298,-420.0,0.00013808,2]
[361622399,1747645493321,-400.0,0.00013808,2]
[361622400,1747645493336,-457.06308461,0.00013808,2]
[361622401,1747645493347,-86019.81,0.00013808,2]
[361622405,1747645615112,-340.53784599,0.00012782,2]
[361622406,1747645745107,-200.0,0.00012129,2]
[361622407,1747645759658,811.068131,0.000139,5]
[361622408,1747645764433,811.068131,0.0002,30]
[361622409,1747645830892,1038.59,0.00012145,2]
[361622420,1747645832171,-717.29212238,0.00012768,2]
[361622421,1747645832225,-98.23787762,0.00012768,2]
[361622422,1747645832236,-200.0,0.0001277,2]
[361622423,1747645832247,-815.53,0.00012772,2]
[361622424,1747645832257,-815.53,0.00012775,2]
[361622425,1747645832267,-554.67437498,0.00012778,2]
[361622426,1747645837230,-260.85562502,0.00012778,2]
[361622427,1747645837240,-815.53,0.00012782,2]
[361622428,1747645837249,-659.46215401,0.00012782,2]
[361622429,1747645837259,-815.53,0.00012785,2]
[361622430,1747645837268,-815.53,0.00012789,2]
[361622431,1747645837277,-815.53,0.00012792,2]
[361622432,1747645837287,-123.57185658,0.00012794,2]
[361622433,1747645837298,-1076.42814342,0.00012794,2]
[361622434,1747645837308,-815.53,0.00012795,2]
[361622435,1747645837317,-180.49484277,0.00012798,2]
[361622436,1747645837332,-119.50515723,0.00012798,2]
[361622437,1747645837341,-815.53,0.00012799,2]
[361622439,1747645837351,-40.02516984,0.00012802,2]
[361622444,1747645837397,-424.13904481,0.00012802,2]
[361622446,1747645837408,-351.36578535,0.00012802,2]
[361622448,1747645837417,-300.0,0.00012804,2]
[361622450,1747645837427,-815.53,0.00012805,2]
[361622452,1747645837439,-815.53,0.00012809,2]
[361622454,1747645837449,-815.53,0.00012812,2]
[361622456,1747645837458,-815.53,0.00012816,2]
[361622458,1747645837468,-815.53,0.00012819,2]
[361622461,1747645837480,-815.53,0.00012822,2]
[361622462,1747645837489,-815.53,0.00012826,2]
[361622464,1747645837498,-815.53,0.00012829,2]
[361622466,1747645837507,-815.53,0.00012832,2]
[361622468,1747645837516,-150.0,0.00012844,2]
[361622471,1747645837526,-200.0,0.00012844,2]
[361622472,1747645837535,-200.0,0.00013104,2]
[361622474,1747645837544,-200.0,0.00013402,2]
[361622476,1747645837554,-163.69254399,0.00013598,2]
[361622478,1747645837563,-150.09412696,0.00013598,2]
[361622480,1747645837573,-4286.27008204,0.00013598,2]
[361622482,1747645837582,-160.64474674,0.00013598,2]
[361622485,1747645837592,-4198.3703472,0.00013598,2]
[361622487,1747645837604,-417.74206616,0.00013598,2]
[361622561,1747645838300,-383.88758664,0.00013598,2]
[361622563,1747645838311,-727.2952,0.00013598,2]
[361622565,1747645838320,-457.84,0.000136,2]
[361622567,1747645838329,-2695.36090926,0.00013632,2]
[361622569,1747645838341,-1590.9091727,0.00013632,2]
[361622572,1747645838351,-387.2453268,0.00013638,2]
[361622574,1747645838360,-2493.16613335,0.00013665,2]
[361622578,1747645838389,-1438.37986925,0.00013665,2]
[361622763,1747645840282,-354.72407936,0.00013665,2]
[361622765,1747645840291,-500.0,0.00013673,2]
[361622767,1747645840300,-500.0,0.00013673,2]
[361622770,1747645840311,-500.0,0.00013673,2]
[361622772,1747645840322,-160.64474673,0.00013674,2]
[361622774,1747645840331,-594.92853782,0.00013697,2]
[361622776,1747645840342,-181.07865399,0.00013697,2]
[361622778,1747645840351,-526.3385688,0.00013697,2]
[361622780,1747645840360,-271.50798924,0.00013697,2]
[361622782,1747645840369,-420.0,0.00013698,2]
[361622784,1747645840380,-515.45776898,0.00013698,2]
[361622786,1747645840389,-420.0,0.00013698,2]
[361622788,1747645840402,-420.0,0.00013698,2]
[361622790,1747645840413,-420.0,0.00013698,2]
[361622792,1747645840422,-400.0,0.00013698,2]
[361622794,1747645840432,-464.68,0.00013698,2]
[361622796,1747645840442,-420.0,0.00013698,2]
[361622798,1747645840452,-400.0,0.00013698,2]
[361622800,1747645840461,-420.0,0.00013698,2]
[361622802,1747645840471,-400.0,0.00013698,2]
[361622804,1747645840482,-400.0,0.00013698,2]
[361622806,1747645840491,-400.0,0.00013698,2]
[361622808,1747645840500,-699.89,0.00013698,2]
[361622810,1747645840511,-420.0,0.00013698,2]
[361622812,1747645840520,-420.0,0.00013698,2]
[361622814,1747645840529,-732.26,0.00013698,2]
[361622816,1747645840538,-849.05,0.00013698,2]
[361622818,1747645840547,-400.0,0.00013698,2]
[361622820,1747645840557,-420.0,0.00013698,2]
[361622822,1747645840568,-894.84,0.00013698,2]
[361622824,1747645840578,-420.0,0.00013698,2]
[361622826,1747645840587,-400.0,0.00013698,2]
[361622828,1747645840597,-655.53,0.00013698,2]
[361622830,1747645840607,-400.0,0.00013698,2]
[361622832,1747645840616,-420.0,0.00013698,2]
[361622834,1747645840626,-575.08,0.00013698,2]
[361622836,1747645840635,-400.0,0.00013698,2]
[361622838,1747645840644,-420.0,0.00013698,2]
[361622840,1747645840654,-400.0,0.00013698,2]
[361622842,1747645840664,-551.33,0.00013698,2]
[361622844,1747645840673,-629.55,0.00013698,2]
[361622846,1747645840682,-420.0,0.00013698,2]
[361622848,1747645840692,-1648.13,0.00013698,2]
[361622850,1747645840702,-383.13578141,0.00013698,2]
[361622852,1747645840712,-420.0,0.00013698,2]
[361622854,1747645840721,-400.0,0.00013698,2]
[361622856,1747645840731,-420.0,0.00013698,2]
[361622858,1747645840740,-788.46,0.00013698,2]
[361622860,1747645840749,-420.0,0.00013698,2]
[361622862,1747645840758,-1083.25,0.00013698,2]
[361622864,1747645840767,-420.0,0.00013698,2]
[361622866,1747645840777,-420.0,0.00013698,2]
[361622868,1747645840787,-400.0,0.00013698,2]
[361622870,1747645840796,-420.0,0.00013698,2]
[361622872,1747645840805,-400.0,0.00013698,2]
[361622874,1747645840815,-420.0,0.00013698,2]
[361622876,1747645840824,-420.0,0.00013698,2]
[361622878,1747645840834,-420.0,0.00013698,2]
[361622880,1747645840843,-3283.47,0.00013698,2]
[361622882,1747645840852,-420.0,0.00013698,2]
[361622884,1747645840862,-420.0,0.00013698,2]
[361622886,1747645840872,-706.76,0.00013698,2]
[361622888,1747645840880,-420.0,0.00013698,2]
[361622890,1747645840890,-420.0,0.00013698,2]
[361622892,1747645840900,-420.0,0.00013698,2]
[361622894,1747645840909,-641.99,0.00013698,2]
[361622896,1747645840918,-420.0,0.00013698,2]
[361622898,1747645840927,-420.0,0.00013698,2]
[361622900,1747645840936,-799.46,0.00013698,2]
[361622902,1747645840945,-620.38,0.00013698,2]
[361622904,1747645840954,-491.75,0.00013698,2]
[361622906,1747645840964,-1868.78,0.00013698,2]
[361622908,1747645840973,-400.0,0.00013698,2]
[361622910,1747645840982,-429.18,0.00013698,2]
[361622912,1747645840991,-817.76,0.00013698,2]
[361622914,1747645841000,-400.0,0.00013698,2]
[361622916,1747645841009,-380.0,0.00013698,2]
[361622918,1747645841019,-420.0,0.00013698,2]
[361622920,1747645841028,-420.0,0.00013698,2]
[361622922,1747645841037,-974.54,0.00013698,2]
[361622924,1747645841046,-494.92,0.00013698,2]
[361622926,1747645841056,-400.0,0.00013698,2]
[361622928,1747645841067,-675.18,0.00013698,2]
[361622930,1747645841076,-1000.0,0.00013698,2]
[361622932,1747645841085,-649.26,0.00013698,2]
[361622934,1747645841094,-420.0,0.00013698,2]
[361622936,1747645841104,-420.0,0.00013698,2]
[361622938,1747645841113,-420.0,0.00013698,2]
[361622940,1747645841122,-420.0,0.00013698,2]
[361622942,1747645841131,-420.0,0.00013698,2]
[361622944,1747645841141,-500.0,0.00013698,2]
[361622946,1747645841150,-718.62,0.00013698,2]
[361622948,1747645841159,-526.35,0.00013698,2]
[361622950,1747645841168,-1096.91,0.00013698,2]
[361622952,1747645841178,-941.63,0.00013698,2]
[361622954,1747645841188,-420.0,0.00013698,2]
[361622956,1747645841197,-420.0,0.00013698,2]
[361622958,1747645841206,-400.0,0.00013698,2]
[361622960,1747645841216,-446.05,0.00013698,2]
[361622962,1747645841225,-420.0,0.00013698,2]
[361622964,1747645841234,-484.0,0.00013698,2]
[361622966,1747645841243,-6866.5,0.00013698,2]
[361622968,1747645841252,-913.34,0.00013698,2]
[361622970,1747645841261,-420.0,0.00013698,2]
[361622972,1747645841271,-420.0,0.00013698,2]
[361622974,1747645841280,-715.46,0.00013698,2]
[361622976,1747645841289,-575.7,0.00013698,2]
[361622978,1747645841298,-526.8,0.00013698,2]
[361622980,1747645841308,-448.61,0.00013698,2]
[361622982,1747645841318,-420.0,0.00013698,2]
[361622984,1747645841327,-420.0,0.00013698,2]
[361622986,1747645841337,-2309.28,0.00013698,2]
[361622988,1747645841346,-420.0,0.00013698,2]
[361622990,1747645841355,-1276.36,0.00013698,2]
[361622992,1747645841364,-1634.25,0.00013698,2]
[361622994,1747645841373,-569.88,0.00013698,2]
[361622996,1747645841383,-420.0,0.00013698,2]
[361622998,1747645841392,-551.69,0.00013698,2]
[361623000,1747645841404,-420.0,0.00013698,2]
[361623002,1747645841413,-874.64,0.00013698,2]
[361623004,1747645841423,-994.88,0.00013698,2]
[361623006,1747645841431,-400.0,0.00013698,2]
[361623008,1747645841440,-7556.51,0.00013698,2]
[361623009,1747645841449,-420.0,0.00013698,2]
[361623012,1747645841459,-420.0,0.00013698,2]
[361623013,1747645841469,-471.03,0.00013698,2]
[361623015,1747645841479,-3509.15,0.00013698,2]
[361623017,1747645841489,-1170.86,0.00013698,2]
[361623020,1747645841499,-420.0,0.00013698,2]
[361623021,1747645841509,-400.0,0.00013698,2]
[361623023,1747645841519,-464.73446048,0.00013698,2]
[361623026,1747645841528,-1262.71,0.00013698,2]
[361623028,1747645841537,-400.0,0.00013698,2]
[361623030,1747645841546,-226.64296717,0.00013698,2]
[361623032,1747645841555,-420.0,0.00013698,2]
[361623034,1747645841565,-420.0,0.00013698,2]
[361623036,1747645841574,-849.5,0.00013698,2]
[361623038,1747645841583,-615.33,0.00013698,2]
[361623040,1747645841592,-506.41,0.00013698,2]
[361623042,1747645841602,-579.63,0.00013698,2]
[361623044,1747645841612,-420.0,0.00013698,2]
[361623046,1747645841621,-400.0,0.00013698,2]
[361623048,1747645841630,-420.0,0.00013698,2]
[361623050,1747645841639,-693.76,0.00013698,2]
[361623052,1747645841648,-2318.1,0.00013698,2]
[361623054,1747645841658,-400.0,0.00013698,2]
[361623056,1747645841667,-1239.07,0.00013698,2]
[361623058,1747645841676,-1014.93,0.00013698,2]
[361623060,1747645841685,-6211.39,0.00013698,2]
[361623062,1747645841694,-784.23,0.00013698,2]
[361623064,1747645841704,-1244.87,0.00013698,2]
[361623066,1747645841713,-420.0,0.00013698,2]
[361623068,1747645841723,-592.45,0.00013698,2]
[361623070,1747645841732,-82435.65,0.00013698,2]
[361623072,1747645841741,-420.0,0.00013698,2]
[361623074,1747645841750,-10386.05,0.00013698,2]
[361623076,1747645841759,-514.14,0.00013698,2]
[361623078,1747645841769,-623.23,0.00013698,2]
[361623080,1747645841778,-420.0,0.00013698,2]
[361623082,1747645841787,-432.69,0.00013698,2]
[361623084,1747645841796,-1050.01,0.00013698,2]
[361623085,1747645841805,-624.4,0.00013698,2]
[361623086,1747645841815,-2709.03,0.00013698,2]
[361623087,1747645841824,-665.96,0.00013698,2]
[361623088,1747645841833,-2486.47,0.00013698,2]
[361623089,1747645841842,-17050.25,0.00013698,2]
[361623090,1747645841852,-866.91,0.00013698,2]
[361623091,1747645841862,-976.52,0.00013698,2]
[361623092,1747645841872,-997.78,0.00013698,2]
[361623093,1747645841882,-567.02,0.00013698,2]
[361623094,1747645841892,-349.23171662,0.00013698,2]
[361623096,1747645841901,-420.0,0.00013698,2]
[361623098,1747645841910,-1294.4,0.00013698,2]
[361623099,1747645841919,-1091.02,0.00013698,2]
[361623100,1747645841928,-420.0,0.00013698,2]
[361623101,1747645841937,-1012.88,0.00013698,2]
[361623102,1747645841947,-543.5,0.00013698,2]
[361623103,1747645841955,-686.96,0.00013698,2]
[361623104,1747645841965,-945.54,0.00013698,2]
[361623105,1747645841974,-582.97,0.00013698,2]
[361623106,1747645841983,-420.0,0.00013698,2]
[361623107,1747645841993,-3733.69,0.00013698,2]
[361623108,1747645842002,-2294.22,0.00013698,2]
[361623109,1747645842012,-9138.2,0.00013698,2]
[361623110,1747645842021,-704.25,0.00013698,2]
[361623111,1747645842030,-420.0,0.00013698,2]
[361623112,1747645842039,-484.36,0.00013698,2]
[361623113,1747645842048,-725.61,0.00013698,2]
[361623114,1747645842056,-614.05,0.00013698,2]
[361623115,1747645842064,-420.0,0.00013698,2]
[361623116,1747645842072,-687.96,0.00013698,2]
[361623117,1747645842081,-420.0,0.00013698,2]
[361623118,1747645842090,-1148.16,0.00013698,2]
[361623119,1747645842099,-3832.04,0.00013698,2]
[361623120,1747645842108,-420.0,0.00013698,2]
[361623121,1747645842116,-420.0,0.00013698,2]
[361623122,1747645842126,-15047.48,0.00013698,2]
[361623123,1747645842135,-770.02,0.00013698,2]
[361623124,1747645842145,-6709.26,0.00013698,2]
[361623125,1747645842154,-326.4459924,0.00013698,2]
[361623126,1747645842163,-420.0,0.00013698,2]
[361623127,1747645842173,-2009.09,0.00013698,2]
[361623128,1747645842182,-505.37,0.00013698,2]
[361623129,1747645842191,-438.67,0.00013698,2]
[361623130,1747645842199,-604.33,0.00013698,2]
[361623131,1747645842210,-420.0,0.00013698,2]
[361623132,1747645842285,-2061.6,0.00013698,2]
[361623133,1747645842296,-420.0,0.00013698,2]
[361623134,1747645842316,-2311.08,0.00013698,2]
[361623135,1747645842326,-3196.5,0.00013698,2]
[361623136,1747645842335,-1000.0,0.00013698,2]
[361623137,1747645842345,-1879.47,0.00013698,2]
[361623138,1747645842355,-1094.99,0.00013698,2]
[361623139,1747645842365,-965.23,0.00013698,2]
[361623140,1747645842374,-3611.11,0.00013698,2]
[361623141,1747645842384,-168.60533428,0.00013698,2]
[361623142,1747645842393,-1605.19,0.00013698,2]
[361623143,1747645842405,-420.0,0.00013698,2]
[361623144,1747645842414,-1409.52,0.00013698,2]
[361623145,1747645842424,-738.54,0.00013698,2]
[361623146,1747645842432,-420.0,0.00013698,2]
[361623147,1747645842443,-420.0,0.00013698,2]
[361623148,1747645842452,-2309.18,0.00013698,2]
[361623149,1747645842462,-420.0,0.00013698,2]
[361623150,1747645842471,-547.93,0.00013698,2]
[361623151,1747645842482,-1956.75,0.00013698,2]
[361623152,1747645842492,-1260.97,0.00013698,2]
[361623153,1747645842501,-1531.91,0.00013698,2]
[361623154,1747645842510,-420.0,0.00013698,2]
[361623155,1747645842520,-420.0,0.00013698,2]
[361623156,1747645842530,-420.0,0.00013698,2]
[361623157,1747645842539,-420.0,0.00013698,2]
[361623158,1747645842549,-420.0,0.00013698,2]
[361623159,1747645842558,-2096.44,0.00013698,2]
[361623160,1747645842569,-2096.68,0.00013698,2]
[361623161,1747645842579,-465.73,0.00013698,2]
[361623162,1747645842589,-1861.11,0.00013698,2]
[361623163,1747645842598,-570.7,0.00013698,2]
[361623164,1747645842608,-2315.48,0.00013698,2]
[361623165,1747645842617,-464.4,0.00013698,2]
[361623166,1747645842627,-973.81,0.00013698,2]
[361623167,1747645842637,-400.0,0.00013698,2]
[361623168,1747645842646,-884.4,0.00013698,2]
[361623169,1747645842655,-695.7,0.00013698,2]
[361623170,1747645842665,-420.0,0.00013698,2]
[361623171,1747645842675,-508.33,0.00013698,2]
[361623172,1747645842684,-437.27,0.00013698,2]
[361623173,1747645842694,-400.0,0.00013698,2]
[361623174,1747645842704,-2002.24,0.00013698,2]
[361623175,1747645842713,-1614.34,0.00013698,2]
[361623176,1747645842723,-404.13617223,0.00013698,2]
[361623177,1747645842733,-973.73,0.00013698,2]
[361623178,1747645842743,-2452.95913747,0.00013698,2]
[361623179,1747645842763,-7934.23086253,0.00013698,2]
[361623180,1747645842773,-552.59,0.00013698,2]
[361623181,1747645842783,-661.99,0.00013698,2]
[361623182,1747645842792,-499.89,0.00013698,2]
[361623183,1747645842802,-565.09067967,0.00013698,2]
[361623184,1747645842811,-477.27,0.00013698,2]
[361623185,1747645842822,-547.51,0.00013698,2]
[361623186,1747645842831,-420.0,0.00013698,2]
[361623187,1747645842840,-420.0,0.00013698,2]
[361623188,1747645842850,-420.0,0.00013698,2]
[361623189,1747645842859,-3346.09,0.00013698,2]
[361623190,1747645842869,-516.89,0.00013698,2]
[361623191,1747645842878,-2023.62,0.00013698,2]
[361623192,1747645842888,-1615.86,0.00013698,2]
[361623193,1747645842897,-55.47434455,0.00013698,2]
[361623194,1747645842919,-365.04565545,0.00013698,2]
[361623195,1747645842929,-420.0,0.00013698,2]
[361623196,1747645842938,-1426.03,0.00013698,2]
[361623198,1747645842948,-288.39063604,0.00013698,2]
[361623200,1747645842996,-574.14936396,0.00013698,2]
[361623202,1747645843006,-906.29,0.00013698,2]
[361623204,1747645843015,-1606.28,0.00013698,2]
[361623206,1747645843025,-1324.2,0.00013698,2]
[361623207,1747645843034,-420.0,0.00013698,2]
[361623209,1747645843043,-661.52,0.00013698,2]
[361623210,1747645843052,-207.7223707,0.00013698,2]
[361623211,1747645843068,-330.8576293,0.00013698,2]
[361623212,1747645843078,-199.23330084,0.00013698,2]
[361623213,1747645843099,-1022.1402,0.00013698,2]
[361623215,1747645843111,-547.08649916,0.00013698,2]
[361623216,1747645843121,-291.48594061,0.00013698,2]
[361623237,1747645844512,-37.83753847,0.00013698,2]
[361623239,1747645844524,-435.74652092,0.00013698,2]
[361623240,1747645844533,-2007.61,0.00013698,2]
[361623241,1747645844542,-420.0,0.00013698,2]
[361623242,1747645844552,-420.0,0.00013698,2]
[361623243,1747645844561,-400.0,0.00013698,2]
[361623244,1747645844571,-420.0,0.00013698,2]
[361623245,1747645844581,-420.0,0.00013698,2]
[361623246,1747645844590,-1010.94,0.00013698,2]
[361623247,1747645844599,-420.0,0.00013698,2]
[361623248,1747645844608,-420.0,0.00013698,2]
[361623249,1747645844618,-798.68,0.00013698,2]
[361623250,1747645844627,-420.0,0.00013698,2]
[361623251,1747645844637,-9183.74,0.00013698,2]
[361623252,1747645844646,-420.0,0.00013698,2]
[361623253,1747645844656,-420.0,0.00013698,2]
[361623254,1747645844665,-1090.01,0.00013698,2]
[361623255,1747645844675,-429.14,0.00013698,2]
[361623256,1747645844684,-577.58,0.00013698,2]
[361623257,1747645844693,-570.11,0.00013698,2]
[361623258,1747645844702,-420.0,0.00013698,2]
[361623259,1747645844712,-420.0,0.00013698,2]
[361623260,1747645844722,-1455.4,0.00013698,2]
[361623261,1747645844732,-500.54058704,0.00013698,2]
[361623262,1747645844741,-1369.98,0.00013698,2]
[361623263,1747645844750,-403.59592664,0.00013698,2]
[361623264,1747645844759,-2027.76,0.00013698,2]
[361623265,1747645844769,-915.93,0.00013698,2]
[361623266,1747645844778,-7034.15,0.00013698,2]
[361623267,1747645844788,-1893.98,0.00013698,2]
[361623268,1747645844797,-560.46,0.00013698,2]
[361623269,1747645844806,-7033.33,0.00013698,2]
[361623270,1747645844816,-477.79,0.00013698,2]
[361623271,1747645844826,-400.0,0.00013698,2]
[361623272,1747645844835,-420.0,0.00013698,2]
[361623273,1747645844845,-420.0,0.00013698,2]
[361623274,1747645844854,-779.92,0.00013698,2]
[361623275,1747645844863,-876.97,0.00013698,2]
[361623276,1747645844872,-420.0,0.00013698,2]
[361623277,1747645844881,-586.69,0.00013698,2]
[361623278,1747645844891,-2062.25,0.00013698,2]
[361623279,1747645844900,-488.14,0.00013698,2]
[361623280,1747645844909,-810.63,0.00013698,2]
[361623281,1747645844918,-4592.93,0.00013698,2]
[361623282,1747645844928,-420.0,0.00013698,2]
[361623283,1747645844937,-420.0,0.00013698,2]
[361623284,1747645844947,-420.0,0.00013698,2]
[361623285,1747645844957,-551.29,0.00013698,2]
[361623286,1747645844966,-4259.49,0.00013698,2]
[361623287,1747645844975,-500.0,0.00013698,2]
[361623288,1747645844984,-500.0,0.00013698,2]
[361623289,1747645844993,-500.0,0.00013698,2]
[361623290,1747645845002,-500.0,0.00013698,2]
[361623291,1747645845012,-971.54,0.00013698,2]
[361623292,1747645845021,-1194.14,0.00013698,2]
[361623293,1747645845031,-437.27,0.00013698,2]
[361623294,1747645845040,-915.58,0.00013698,2]
[361623295,1747645845049,-1313.77,0.00013698,2]
[361623296,1747645845059,-420.0,0.00013698,2]
[361623297,1747645845069,-488.1,0.00013698,2]
[361623298,1747645845078,-1659.81,0.00013698,2]
[361623299,1747645845088,-523.99,0.00013698,2]
[361623300,1747645845097,-589.47,0.00013698,2]
[361623301,1747645845106,-420.0,0.00013698,2]
[361623302,1747645845115,-1005.39,0.00013698,2]
[361623303,1747645845124,-2618.85,0.00013698,2]
[361623304,1747645845133,-1038.93,0.00013698,2]
[361623305,1747645845145,-1401.17,0.00013698,2]
[361623306,1747645845154,-420.0,0.00013698,2]
[361623307,1747645845163,-340.0,0.00013698,2]
[361623308,1747645845173,-769.24,0.00013698,2]
[361623309,1747645845182,-481.74710813,0.00013698,2]
[361623310,1747645845195,-543.16976731,0.00013698,2]
[361623311,1747645845204,-4227.17,0.00013698,2]
[361623312,1747645845213,-704.03,0.00013698,2]
[361623313,1747645845222,-7761.57,0.00013698,2]
[361623314,1747645845231,-1006.46,0.00013698,2]
[361623315,1747645845240,-593.03,0.00013698,2]
[361623316,1747645845250,-420.0,0.00013698,2]
[361623317,1747645845259,-12516.44,0.00013698,2]
[361623318,1747645845268,-1067.49,0.00013698,2]
[361623319,1747645845277,-420.0,0.00013698,2]
[361623320,1747645845287,-420.0,0.00013698,2]
[361623321,1747645845298,-420.0,0.00013698,2]